[Event "Early-Titled-Tuesday-Blitz-March-19-2024"]
[Site "Chess.com"]
[Date "2024.03.19"]
[Round "3"]
[White "Rodalquilar"]
[Black "Incognizance"]
[Result "1-0"]
[WhiteElo "2786"]
[BlackElo "1888"]
[TimeControl "180+1"]
[EndTime "8:28:00 PDT"]
[Termination "Rodalquilar won by resignation"]

1. d4 {[%clk 0:03:00.9]} 1... Nf6 {[%clk 0:02:59.5]} 2. Nf3 {[%clk 0:03:01.4]}
2... d5 {[%clk 0:02:59.3]} 3. Bf4 {[%clk 0:03:01.8]} 3... e6 {[%clk 0:02:59.3]}
4. e3 {[%clk 0:03:02.4]} 4... c5 {[%clk 0:02:59.3]} 5. Nbd2 {[%clk 0:03:02.1]}
5... Nc6 {[%clk 0:02:59.5]} 6. c3 {[%clk 0:03:02.6]} 6... Bd6 {[%clk 0:02:59.4]}
7. Bg3 {[%clk 0:03:01.8]} 7... O-O {[%clk 0:02:59.1]} 8. Bd3 {[%clk 0:02:57.5]}
8... b6 {[%clk 0:02:57.8]} 9. e4 {[%clk 0:02:57.8]} 9... Be7 {[%clk 0:02:51.8]}
10. e5 {[%clk 0:02:57.1]} 10... Nh5 {[%clk 0:02:52]} 11. Ng5 {[%clk 0:02:57.5]}
11... g6 {[%clk 0:02:44.1]} 12. Nxh7 {[%clk 0:02:52.3]} 12... cxd4 {[%clk
0:02:27.5]} 13. Nxf8 {[%clk 0:02:50.2]} 13... dxc3 {[%clk 0:02:22.1]} 14. Nxg6
{[%clk 0:02:17.2]} 14... cxd2+ {[%clk 0:02:19.3]} 15. Kf1 {[%clk 0:02:17.5]}
15... fxg6 {[%clk 0:01:53.5]} 16. Bxg6 {[%clk 0:02:18.4]} 16... Ng7 {[%clk
0:01:53.9]} 17. Qxd2 {[%clk 0:02:18]} 17... Ba6+ {[%clk 0:01:49]} 18. Kg1 {[%clk
0:02:17.7]} 18... Bg5 {[%clk 0:01:44.9]} 19. f4 {[%clk 0:02:11.5]} 19... Be7
{[%clk 0:01:39.6]} 20. h4 {[%clk 0:02:09.2]} 20... Bc5+ {[%clk 0:01:15.2]} 21.
Kh2 {[%clk 0:02:09]} 21... Nd4 {[%clk 0:01:15.5]} 22. b4 {[%clk 0:02:04.7]}
22... Ndf5 {[%clk 0:00:56.5]} 23. Bxf5 {[%clk 0:02:04.9]} 23... Nxf5 {[%clk
0:00:56.5]} 24. bxc5 {[%clk 0:02:02.1]} 24... bxc5 {[%clk 0:00:57.4]} 25. Qd1
{[%clk 0:01:56.2]} 25... Qf8 {[%clk 0:00:26.2]} 26. Qh5 {[%clk 0:01:47.8]} 26...
Qf7 {[%clk 0:00:24.7]} 27. Qxf7+ {[%clk 0:01:36.7]} 27... Kxf7 {[%clk
0:00:24.8]} 28. Bf2 {[%clk 0:01:37.6]} 28... d4 {[%clk 0:00:23.7]} 29. g4 {[%clk
0:01:37.4]} 29... Nh6 {[%clk 0:00:21.7]} 30. Rhg1 {[%clk 0:01:29]} 30... Rg8
{[%clk 0:00:19.7]} 31. g5 {[%clk 0:01:23]} 31... Nf5 {[%clk 0:00:19.7]} 32. Rac1
{[%clk 0:01:23.4]} 32... Rh8 {[%clk 0:00:19.6]} 33. Rxc5 {[%clk 0:01:18.4]}
33... Nxh4 {[%clk 0:00:19.9]} 34. Rc7+ {[%clk 0:01:18.6]} 34... Kg6 {[%clk
0:00:19.1]} 35. Bxh4 {[%clk 0:01:18.5]} 35... Rxh4+ {[%clk 0:00:18.1]} 36. Kg3
{[%clk 0:01:19.1]} 36... Rh8 {[%clk 0:00:16.2]} 37. Rc6 {[%clk 0:01:15.6]} 37...
Bb5 {[%clk 0:00:15.1]} 38. Rxe6+ {[%clk 0:01:15.5]} 38... Kf5 {[%clk 0:00:16]}
39. Rf6+ {[%clk 0:01:15.8]} 39... Ke4 {[%clk 0:00:16.3]} 40. Re1+ {[%clk
0:01:14.9]} 40... Kd5 {[%clk 0:00:16.6]} 41. Rd6+ {[%clk 0:01:12.7]} 41... Kc5
{[%clk 0:00:17.3]} 42. Rc1+ {[%clk 0:01:12.7]} 42... Bc4 {[%clk 0:00:17.5]} 43.
Rd7 {[%clk 0:01:09.7]} 43... Kb4 {[%clk 0:00:17.1]} 44. Rxd4 {[%clk 0:01:09.1]}
1-0

[Event "Early-Titled-Tuesday-Blitz-March-19-2024"]
[Site "Chess.com"]
[Date "2024.03.19"]
[Round "3"]
[White "venturov"]
[Black "ulises2013"]
[Result "0-1"]
[WhiteElo "2475"]
[BlackElo "2704"]
[TimeControl "180+1"]
[EndTime "8:28:02 PDT"]
[Termination "ulises2013 won by resignation"]

1. e4 {[%clk 0:03:00.9]} 1... g6 {[%clk 0:02:58.4]} 2. d4 {[%clk 0:02:58.6]}
2... Bg7 {[%clk 0:02:59.3]} 3. f4 {[%clk 0:02:58.6]} 3... c5 {[%clk 0:03:00]} 4.
c3 {[%clk 0:02:55.9]} 4... cxd4 {[%clk 0:03:00.2]} 5. cxd4 {[%clk 0:02:56.3]}
5... d5 {[%clk 0:03:01.1]} 6. e5 {[%clk 0:02:55.6]} 6... Nc6 {[%clk 0:03:01.7]}
7. Nc3 {[%clk 0:02:51.1]} 7... Nh6 {[%clk 0:03:01.9]} 8. Nf3 {[%clk 0:02:42.3]}
8... Bg4 {[%clk 0:03:01.3]} 9. Be2 {[%clk 0:02:39.9]} 9... Nf5 {[%clk 0:03:01]}
10. h3 {[%clk 0:02:24.1]} 10... Bxf3 {[%clk 0:03:01]} 11. Bxf3 {[%clk 0:02:25]}
11... e6 {[%clk 0:02:59.6]} 12. O-O {[%clk 0:01:55.8]} 12... O-O {[%clk
0:02:48.6]} 13. Kh2 {[%clk 0:01:54.7]} 13... Nfxd4 {[%clk 0:02:48.7]} 14. Be3
{[%clk 0:01:54.1]} 14... Nxf3+ {[%clk 0:02:41.7]} 15. Qxf3 {[%clk 0:01:48.9]}
15... f6 {[%clk 0:02:41.7]} 16. exf6 {[%clk 0:01:44.2]} 16... Qxf6 {[%clk
0:02:42.6]} 17. Bc5 {[%clk 0:01:34.5]} 17... Rfe8 {[%clk 0:02:42.1]} 18. Rae1
{[%clk 0:01:30.4]} 18... b6 {[%clk 0:02:39.9]} 19. Bd6 {[%clk 0:01:24.5]} 19...
Rad8 {[%clk 0:02:37.1]} 20. Be5 {[%clk 0:01:19.4]} 20... Nxe5 {[%clk 0:02:36.9]}
21. Rxe5 {[%clk 0:01:17.4]} 21... Qf7 {[%clk 0:02:36.8]} 22. Ree1 {[%clk
0:01:15.1]} 22... Bxc3 {[%clk 0:02:35.6]} 23. Qxc3 {[%clk 0:01:06.5]} 23... Rc8
{[%clk 0:02:36]} 24. Qe5 {[%clk 0:00:58.1]} 24... Rc4 {[%clk 0:02:27.2]} 25. f5
{[%clk 0:00:56]} 25... gxf5 {[%clk 0:02:22.2]} 26. Rf3 {[%clk 0:00:32.9]} 26...
f4 {[%clk 0:02:02.2]} 27. Ref1 {[%clk 0:00:21.5]} 27... Rf8 {[%clk 0:01:51.5]}
28. g3 {[%clk 0:00:09.8]} 28... Qf6 {[%clk 0:01:48.8]} 29. Qd6 {[%clk
0:00:08.5]} 29... Rc2+ {[%clk 0:01:30.2]} 30. Kh1 {[%clk 0:00:08]} 30... Qf5
{[%clk 0:01:19.7]} 31. gxf4 {[%clk 0:00:06.3]} 31... Kh8 {[%clk 0:01:11.4]} 32.
Rg1 {[%clk 0:00:05.1]} 32... Rcc8 {[%clk 0:01:06.5]} 33. Qa3 {[%clk 0:00:02.5]}
33... Qe4 {[%clk 0:01:00.7]} 34. b3 {[%clk 0:00:02.1]} 34... Qxf3+ {[%clk
0:01:00.4]} 35. Kh2 {[%clk 0:00:02.8]} 35... Rc2+ {[%clk 0:01:00.3]} 0-1

[Event "Early-Titled-Tuesday-Blitz-March-19-2024"]
[Site "Chess.com"]
[Date "2024.03.19"]
[Round "3"]
[White "RoelandPruijssers"]
[Black "TigrVShlyape"]
[Result "1-0"]
[WhiteElo "2704"]
[BlackElo "2904"]
[TimeControl "180+1"]
[EndTime "8:28:06 PDT"]
[Termination "RoelandPruijssers won on time"]

1. e4 {[%clk 0:03:00.9]} 1... c5 {[%clk 0:02:55.9]} 2. Nf3 {[%clk 0:02:58.5]}
2... e6 {[%clk 0:02:55.8]} 3. d4 {[%clk 0:02:57.9]} 3... cxd4 {[%clk 0:02:56]}
4. Nxd4 {[%clk 0:02:58]} 4... a6 {[%clk 0:02:56.6]} 5. Bd3 {[%clk 0:02:57.7]}
5... Bc5 {[%clk 0:02:53.7]} 6. Nb3 {[%clk 0:02:57.9]} 6... Ba7 {[%clk
0:02:53.7]} 7. O-O {[%clk 0:02:57.4]} 7... Ne7 {[%clk 0:02:45.6]} 8. Qe2 {[%clk
0:02:44.5]} 8... O-O {[%clk 0:02:42.2]} 9. Rd1 {[%clk 0:02:40.1]} 9... Nbc6
{[%clk 0:02:37]} 10. Be3 {[%clk 0:02:33.2]} 10... Qc7 {[%clk 0:02:17.7]} 11.
Bxa7 {[%clk 0:02:17.3]} 11... Rxa7 {[%clk 0:02:17]} 12. c4 {[%clk 0:02:16.8]}
12... b6 {[%clk 0:02:05.3]} 13. Nc3 {[%clk 0:02:11.9]} 13... Qb8 {[%clk
0:01:56.1]} 14. Qe3 {[%clk 0:01:53.9]} 14... e5 {[%clk 0:01:44.8]} 15. Nd5
{[%clk 0:01:43.6]} 15... Nxd5 {[%clk 0:01:08.5]} 16. exd5 {[%clk 0:01:29]} 16...
Nb4 {[%clk 0:01:07.5]} 17. Bb1 {[%clk 0:01:10.6]} 17... a5 {[%clk 0:01:06.2]}
18. a3 {[%clk 0:01:07.5]} 18... Na6 {[%clk 0:01:05.8]} 19. d6 {[%clk 0:01:08.1]}
19... Re8 {[%clk 0:00:54]} 20. Rd5 {[%clk 0:01:01.8]} 20... f6 {[%clk 0:00:32]}
21. Qh3 {[%clk 0:00:41.5]} 21... g6 {[%clk 0:00:22]} 22. Bxg6 {[%clk 0:00:36.9]}
22... hxg6 {[%clk 0:00:20.7]} 23. Qh6 {[%clk 0:00:37.6]} 23... Re6 {[%clk
0:00:09.9]} 24. Qxg6+ {[%clk 0:00:35.5]} 24... Kf8 {[%clk 0:00:10.1]} 25. Nd4
{[%clk 0:00:31.7]} 1-0

[Event "Early-Titled-Tuesday-Blitz-March-19-2024"]
[Site "Chess.com"]
[Date "2024.03.19"]
[Round "3"]
[White "noblerone"]
[Black "AlexeiShirov"]
[Result "0-1"]
[WhiteElo "2536"]
[BlackElo "2849"]
[TimeControl "180+1"]
[EndTime "8:28:09 PDT"]
[Termination "AlexeiShirov won on time"]

1. d4 {[%clk 0:03:00.9]} 1... d5 {[%clk 0:02:59.4]} 2. c4 {[%clk 0:02:54.9]}
2... c6 {[%clk 0:02:58.4]} 3. Nf3 {[%clk 0:02:52.3]} 3... Nf6 {[%clk 0:02:57.4]}
4. Nc3 {[%clk 0:02:50.2]} 4... e6 {[%clk 0:02:56]} 5. cxd5 {[%clk 0:02:36.8]}
5... exd5 {[%clk 0:02:55.3]} 6. Bg5 {[%clk 0:02:37.2]} 6... h6 {[%clk
0:02:53.7]} 7. Bh4 {[%clk 0:02:34.3]} 7... Bf5 {[%clk 0:02:52.9]} 8. e3 {[%clk
0:02:34.1]} 8... Nbd7 {[%clk 0:02:52]} 9. Bd3 {[%clk 0:02:29.2]} 9... Bxd3
{[%clk 0:02:49.5]} 10. Qxd3 {[%clk 0:02:30.1]} 10... Be7 {[%clk 0:02:44.2]} 11.
O-O {[%clk 0:02:27.6]} 11... O-O {[%clk 0:02:41.6]} 12. Rab1 {[%clk 0:02:23.6]}
12... Re8 {[%clk 0:02:39.5]} 13. b4 {[%clk 0:02:05.8]} 13... a6 {[%clk
0:02:37.8]} 14. a4 {[%clk 0:02:02.2]} 14... b5 {[%clk 0:02:35.9]} 15. a5 {[%clk
0:01:56.5]} 15... Ne4 {[%clk 0:02:35]} 16. Bxe7 {[%clk 0:01:42.3]} 16... Qxe7
{[%clk 0:02:34.1]} 17. Nd2 {[%clk 0:01:36.4]} 17... Nd6 {[%clk 0:02:31.4]} 18.
Nb3 {[%clk 0:01:32.8]} 18... Nc4 {[%clk 0:02:30.5]} 19. Nc5 {[%clk 0:01:33.3]}
19... Nxc5 {[%clk 0:02:29.7]} 20. dxc5 {[%clk 0:01:32.8]} 20... Rad8 {[%clk
0:02:25.3]} 21. Ne2 {[%clk 0:01:31.8]} 21... Qf6 {[%clk 0:02:24.4]} 22. Nd4
{[%clk 0:01:28.3]} 22... Re4 {[%clk 0:02:23.3]} 23. Rbe1 {[%clk 0:01:23.3]}
23... Rde8 {[%clk 0:02:21.8]} 24. Re2 {[%clk 0:01:14.9]} 24... h5 {[%clk
0:02:14.2]} 25. Rfe1 {[%clk 0:01:13.1]} 25... h4 {[%clk 0:02:00.7]} 26. h3
{[%clk 0:00:54.7]} 26... g6 {[%clk 0:01:59.3]} 27. Nf3 {[%clk 0:00:27.2]} 27...
Kg7 {[%clk 0:01:57.9]} 28. Nd4 {[%clk 0:00:26.8]} 28... g5 {[%clk 0:01:50.2]}
29. f3 {[%clk 0:00:24.7]} 29... R4e5 {[%clk 0:01:49.5]} 30. e4 {[%clk
0:00:22.5]} 30... dxe4 {[%clk 0:01:46.2]} 31. fxe4 {[%clk 0:00:23.4]} 31... Qg6
{[%clk 0:01:36.2]} 32. Nf5+ {[%clk 0:00:21.9]} 32... Kh7 {[%clk 0:01:35.7]} 33.
Rf1 {[%clk 0:00:20]} 33... R5e6 {[%clk 0:01:31.5]} 34. Qd7 {[%clk 0:00:11.2]}
34... Rxe4 {[%clk 0:01:27.1]} 35. Rxe4 {[%clk 0:00:12.1]} 35... Rxe4 {[%clk
0:01:23.5]} 36. Ng3 {[%clk 0:00:10.3]} 36... hxg3 {[%clk 0:01:17.9]} 37. Rxf7+
{[%clk 0:00:10]} 37... Kh6 {[%clk 0:01:17.2]} 38. Rf1 {[%clk 0:00:03.1]} 38...
Rf4 {[%clk 0:01:15.9]} 39. Re1 {[%clk 0:00:03]} 39... Qf6 {[%clk 0:01:11]} 40.
Qe8 {[%clk 0:00:03.2]} 40... Nd2 {[%clk 0:01:07.4]} 0-1

[Event "Early-Titled-Tuesday-Blitz-March-19-2024"]
[Site "Chess.com"]
[Date "2024.03.19"]
[Round "3"]
[White "Alina_Gumerovna"]
[Black "IPAchess"]
[Result "1-0"]
[WhiteElo "2169"]
[BlackElo "2387"]
[TimeControl "180+1"]
[EndTime "8:28:09 PDT"]
[Termination "Alina_Gumerovna won by resignation"]

1. e4 {[%clk 0:02:59.7]} 1... e5 {[%clk 0:02:59.7]} 2. Nf3 {[%clk 0:02:58.9]}
2... Nc6 {[%clk 0:03:00.2]} 3. d4 {[%clk 0:02:59.6]} 3... exd4 {[%clk
0:03:01.1]} 4. Nxd4 {[%clk 0:03:00.5]} 4... Nf6 {[%clk 0:03:01.5]} 5. Nxc6
{[%clk 0:03:00.3]} 5... bxc6 {[%clk 0:03:02.4]} 6. e5 {[%clk 0:03:01.2]} 6...
Qe7 {[%clk 0:03:02.7]} 7. Qe2 {[%clk 0:03:01.3]} 7... Nd5 {[%clk 0:03:03.3]} 8.
c4 {[%clk 0:03:02]} 8... Ba6 {[%clk 0:03:03.7]} 9. b3 {[%clk 0:03:02.2]} 9... g6
{[%clk 0:02:59.5]} 10. Bb2 {[%clk 0:03:01.3]} 10... Bg7 {[%clk 0:03:00]} 11. g3
{[%clk 0:03:00]} 11... O-O {[%clk 0:02:39.8]} 12. Bg2 {[%clk 0:02:59]} 12...
Rfe8 {[%clk 0:02:38.1]} 13. O-O {[%clk 0:02:59.1]} 13... Bxe5 {[%clk 0:02:31]}
14. Qxe5 {[%clk 0:02:57.9]} 14... Qxe5 {[%clk 0:02:31.2]} 15. Bxe5 {[%clk
0:02:58.8]} 15... Rxe5 {[%clk 0:02:31.6]} 16. cxd5 {[%clk 0:02:58.3]} 16... Bxf1
{[%clk 0:02:31.8]} 17. Kxf1 {[%clk 0:02:59.2]} 17... cxd5 {[%clk 0:02:32.2]} 18.
Nc3 {[%clk 0:02:58.1]} 18... c6 {[%clk 0:02:29.2]} 19. Re1 {[%clk 0:02:39.8]}
19... Rxe1+ {[%clk 0:02:27.3]} 20. Kxe1 {[%clk 0:02:40.7]} 20... Kg7 {[%clk
0:02:28]} 21. Kd2 {[%clk 0:02:40]} 21... Kf6 {[%clk 0:02:28.4]} 22. f4 {[%clk
0:02:36.6]} 22... Ke6 {[%clk 0:02:28.6]} 23. Kd3 {[%clk 0:02:30.7]} 23... Kd6
{[%clk 0:02:28.4]} 24. Ne2 {[%clk 0:02:25.3]} 24... a6 {[%clk 0:02:26]} 25. Nd4
{[%clk 0:02:15.7]} 25... c5 {[%clk 0:02:18.7]} 26. Nf3 {[%clk 0:02:11.4]} 26...
f6 {[%clk 0:02:16.4]} 27. Nd2 {[%clk 0:02:10.2]} 27... Re8 {[%clk 0:02:14.5]}
28. Nf3 {[%clk 0:02:09.7]} 28... a5 {[%clk 0:02:12.7]} 29. a4 {[%clk 0:01:44.3]}
29... Rb8 {[%clk 0:02:10.2]} 30. Kc3 {[%clk 0:01:44.3]} 30... Re8 {[%clk
0:02:09.6]} 31. Kd3 {[%clk 0:01:44.4]} 31... Re7 {[%clk 0:02:06.8]} 32. Bh3
{[%clk 0:01:40.3]} 32... d4 {[%clk 0:01:57.7]} 33. Nd2 {[%clk 0:01:21.2]} 33...
Re3+ {[%clk 0:01:57.9]} 34. Kc2 {[%clk 0:01:21.1]} 34... Re2 {[%clk 0:01:57.7]}
35. Kd1 {[%clk 0:01:21.3]} 35... Rxh2 {[%clk 0:01:57.8]} 36. Nc4+ {[%clk
0:01:21.9]} 36... Kc7 {[%clk 0:01:52.5]} 37. Bg4 {[%clk 0:01:19.6]} 37... d5
{[%clk 0:01:52.5]} 38. Nxa5 {[%clk 0:01:11.3]} 38... Kb6 {[%clk 0:01:51.9]} 39.
b4 {[%clk 0:01:11.8]} 39... cxb4 {[%clk 0:01:51]} 40. Nb3 {[%clk 0:01:11.9]}
40... Rg2 {[%clk 0:01:43.4]} 41. Be2 {[%clk 0:01:08.1]} 41... Rxg3 {[%clk
0:01:42.5]} 42. a5+ {[%clk 0:01:08.4]} 42... Kc6 {[%clk 0:01:40.6]} 43. Nxd4+
{[%clk 0:01:08.2]} 43... Kc5 {[%clk 0:01:40.3]} 44. Ne6+ {[%clk 0:01:07.8]}
44... Kd6 {[%clk 0:01:40.3]} 45. Nd4 {[%clk 0:01:05.1]} 45... Ra3 {[%clk
0:01:40.4]} 46. a6 {[%clk 0:01:05.2]} 46... h5 {[%clk 0:01:39.3]} 47. Nb5+
{[%clk 0:01:05]} 47... Kc6 {[%clk 0:01:34.6]} 48. Nxa3 {[%clk 0:01:05.1]} 48...
bxa3 {[%clk 0:01:35.5]} 49. Kc2 {[%clk 0:01:05.6]} 49... Kb6 {[%clk 0:01:35.8]}
50. Kb3 {[%clk 0:01:04.2]} 50... h4 {[%clk 0:01:33.8]} 51. Kxa3 {[%clk
0:00:57.8]} 51... h3 {[%clk 0:01:32.3]} 52. Kb4 {[%clk 0:00:56.8]} 52... h2
{[%clk 0:01:31.8]} 53. Bf3 {[%clk 0:00:56.8]} 53... Kxa6 {[%clk 0:01:30.1]} 54.
Kc5 {[%clk 0:00:54.6]} 54... g5 {[%clk 0:01:24.3]} 55. f5 {[%clk 0:00:54.5]}
55... g4 {[%clk 0:01:23.6]} 56. Bxd5 {[%clk 0:00:51.7]} 56... g3 {[%clk
0:01:21.2]} 57. Bh1 {[%clk 0:00:47.8]} 1-0

[Event "Early-Titled-Tuesday-Blitz-March-19-2024"]
[Site "Chess.com"]
[Date "2024.03.19"]
[Round "3"]
[White "LiadCuba"]
[Black "AryanTari"]
[Result "0-1"]
[WhiteElo "2567"]
[BlackElo "3002"]
[TimeControl "180+1"]
[EndTime "8:28:11 PDT"]
[Termination "AryanTari won by resignation"]

1. d4 {[%clk 0:03:00.9]} 1... d5 {[%clk 0:02:59.4]} 2. c4 {[%clk 0:03:01]} 2...
e6 {[%clk 0:02:59]} 3. Nc3 {[%clk 0:03:00.2]} 3... c5 {[%clk 0:02:58.9]} 4. cxd5
{[%clk 0:02:57.8]} 4... cxd4 {[%clk 0:02:59.2]} 5. Qa4+ {[%clk 0:02:57.6]} 5...
Bd7 {[%clk 0:02:59.3]} 6. Qxd4 {[%clk 0:02:57.2]} 6... exd5 {[%clk 0:02:59.8]}
7. Nf3 {[%clk 0:02:37.4]} 7... Nf6 {[%clk 0:02:57.1]} 8. Nxd5 {[%clk 0:02:34.6]}
8... Qa5+ {[%clk 0:02:55.6]} 9. Nc3 {[%clk 0:02:32.8]} 9... Nc6 {[%clk
0:02:55.7]} 10. Qa4 {[%clk 0:02:22.3]} 10... Qxa4 {[%clk 0:02:48.7]} 11. Nxa4
{[%clk 0:02:23.2]} 11... Nb4 {[%clk 0:02:49.3]} 12. Nc3 {[%clk 0:02:16.9]} 12...
Nc2+ {[%clk 0:02:47.8]} 13. Kd1 {[%clk 0:02:17.2]} 13... Nxa1 {[%clk 0:02:48.7]}
14. Bg5 {[%clk 0:02:15.2]} 14... Ng4 {[%clk 0:02:34.6]} 15. Bh4 {[%clk
0:02:11.7]} 15... Be7 {[%clk 0:02:34.5]} 16. Bg3 {[%clk 0:02:10]} 16... Rc8
{[%clk 0:02:08.4]} 17. h3 {[%clk 0:02:06.2]} 17... Nf6 {[%clk 0:02:06]} 18. e3
{[%clk 0:01:55.1]} 18... O-O {[%clk 0:02:05.2]} 19. Bd3 {[%clk 0:01:46.9]} 19...
Rfd8 {[%clk 0:02:03.8]} 20. Ke2 {[%clk 0:01:46.2]} 20... Bb4 {[%clk 0:01:53.7]}
21. Rxa1 {[%clk 0:01:44.4]} 21... Bxc3 {[%clk 0:01:54]} 22. bxc3 {[%clk
0:01:45.3]} 22... Rxc3 {[%clk 0:01:54.4]} 23. Rd1 {[%clk 0:01:36.8]} 23... Rxd3
{[%clk 0:01:52.2]} 24. Rxd3 {[%clk 0:01:31.3]} 24... Bb5 {[%clk 0:01:52.2]} 25.
Nd4 {[%clk 0:01:32.2]} 25... Bxd3+ {[%clk 0:01:48.1]} 26. Kxd3 {[%clk
0:01:33.1]} 26... Rc8 {[%clk 0:01:43.7]} 27. e4 {[%clk 0:01:27.5]} 27... a6
{[%clk 0:01:43]} 28. Bf4 {[%clk 0:01:23.2]} 28... g6 {[%clk 0:01:42.8]} 29. Nb3
{[%clk 0:01:15.4]} 29... Nd7 {[%clk 0:01:40.3]} 30. Bd6 {[%clk 0:01:09.3]} 30...
f6 {[%clk 0:01:37.5]} 31. f4 {[%clk 0:01:05.3]} 31... Kf7 {[%clk 0:01:37.2]} 32.
Ba3 {[%clk 0:01:00.3]} 32... b6 {[%clk 0:01:35]} 33. g4 {[%clk 0:00:58.2]} 33...
g5 {[%clk 0:01:27.7]} 34. fxg5 {[%clk 0:00:37.9]} 34... fxg5 {[%clk 0:01:23.7]}
35. Kd4 {[%clk 0:00:35.9]} 35... Ke6 {[%clk 0:01:23.5]} 36. Bc1 {[%clk
0:00:32.6]} 36... Ne5 {[%clk 0:01:23.8]} 37. Ke3 {[%clk 0:00:18.9]} 37... Rc3+
{[%clk 0:01:23.1]} 38. Ke2 {[%clk 0:00:16.9]} 38... Rxh3 {[%clk 0:01:17.1]} 39.
Bxg5 {[%clk 0:00:16.9]} 39... Nxg4 {[%clk 0:01:16.7]} 40. Bf4 {[%clk 0:00:16.1]}
40... Nf6 {[%clk 0:01:07.9]} 41. Nd4+ {[%clk 0:00:15.1]} 41... Kf7 {[%clk
0:01:07.8]} 42. e5 {[%clk 0:00:13.6]} 42... Nd5 {[%clk 0:01:08.1]} 43. e6+
{[%clk 0:00:13.4]} 43... Kg6 {[%clk 0:01:08.2]} 44. Nc6 {[%clk 0:00:09.5]} 44...
Nxf4+ {[%clk 0:01:08.3]} 45. Kf2 {[%clk 0:00:09.8]} 45... Nxe6 {[%clk
0:01:08.5]} 46. Ne5+ {[%clk 0:00:10.1]} 46... Kf5 {[%clk 0:01:08.6]} 0-1

[Event "Early-Titled-Tuesday-Blitz-March-19-2024"]
[Site "Chess.com"]
[Date "2024.03.19"]
[Round "3"]
[White "Bauman_Guy"]
[Black "axvesik"]
[Result "1-0"]
[WhiteElo "2922"]
[BlackElo "2563"]
[TimeControl "180+1"]
[EndTime "8:28:15 PDT"]
[Termination "Bauman_Guy won on time"]

1. e4 {[%clk 0:02:55.9]} 1... e6 {[%clk 0:02:59.4]} 2. d4 {[%clk 0:02:54.9]}
2... d5 {[%clk 0:02:55.5]} 3. Nc3 {[%clk 0:02:52.1]} 3... Bb4 {[%clk 0:02:50.9]}
4. e5 {[%clk 0:02:52]} 4... c5 {[%clk 0:02:50.6]} 5. a3 {[%clk 0:02:52.1]} 5...
Bxc3+ {[%clk 0:02:51]} 6. bxc3 {[%clk 0:02:53]} 6... Ne7 {[%clk 0:02:51.2]} 7.
Qg4 {[%clk 0:02:53.4]} 7... cxd4 {[%clk 0:02:49.8]} 8. Bd3 {[%clk 0:02:53]} 8...
Qa5 {[%clk 0:02:39.1]} 9. Ne2 {[%clk 0:02:51.5]} 9... O-O {[%clk 0:02:37.5]} 10.
h4 {[%clk 0:02:41.3]} 10... Nbc6 {[%clk 0:02:34.1]} 11. f4 {[%clk 0:02:29.3]}
11... f6 {[%clk 0:02:15]} 12. O-O {[%clk 0:02:04.6]} 12... Bd7 {[%clk
0:01:54.6]} 13. cxd4 {[%clk 0:01:59.4]} 13... fxe5 {[%clk 0:01:27.4]} 14. dxe5
{[%clk 0:01:55.3]} 14... Nf5 {[%clk 0:01:25]} 15. Kh2 {[%clk 0:01:50.4]} 15...
Rac8 {[%clk 0:01:20.6]} 16. h5 {[%clk 0:01:30.2]} 16... Nce7 {[%clk 0:01:11.2]}
17. a4 {[%clk 0:01:17.6]} 17... Bxa4 {[%clk 0:00:59.3]} 18. Ba3 {[%clk
0:01:04.6]} 18... Rf7 {[%clk 0:00:22.5]} 19. Bxe7 {[%clk 0:00:40.6]} 19... Rxe7
{[%clk 0:00:20.8]} 20. Bxf5 {[%clk 0:00:37.9]} 20... exf5 {[%clk 0:00:20.6]} 21.
Qg5 {[%clk 0:00:38.2]} 21... Rf7 {[%clk 0:00:14.6]} 22. h6 {[%clk 0:00:31.9]}
22... Rxc2 {[%clk 0:00:12.6]} 23. Nd4 {[%clk 0:00:30]} 23... Rc8 {[%clk
0:00:11.3]} 24. Nxf5 {[%clk 0:00:25.1]} 24... g6 {[%clk 0:00:02.2]} 25. Ne7+
{[%clk 0:00:24.5]} 25... Rxe7 {[%clk 0:00:02]} 26. Qxe7 {[%clk 0:00:25.4]} 1-0

[Event "Early-Titled-Tuesday-Blitz-March-19-2024"]
[Site "Chess.com"]
[Date "2024.03.19"]
[Round "3"]
[White "SAInt_666"]
[Black "GMBenjaminBok"]
[Result "0-1"]
[WhiteElo "2744"]
[BlackElo "2973"]
[TimeControl "180+1"]
[EndTime "8:28:16 PDT"]
[Termination "GMBenjaminBok won by resignation"]

1. e4 {[%clk 0:03:00.5]} 1... c5 {[%clk 0:02:57.2]} 2. Nf3 {[%clk 0:03:00.2]}
2... d6 {[%clk 0:02:57.3]} 3. Bb5+ {[%clk 0:02:59.6]} 3... Nd7 {[%clk 0:02:57]}
4. O-O {[%clk 0:02:59.2]} 4... a6 {[%clk 0:02:57.5]} 5. Bxd7+ {[%clk 0:02:59.5]}
5... Bxd7 {[%clk 0:02:58.4]} 6. c3 {[%clk 0:02:59.7]} 6... Bg4 {[%clk
0:02:57.9]} 7. h3 {[%clk 0:02:57.8]} 7... Bh5 {[%clk 0:02:57.8]} 8. d4 {[%clk
0:02:56.6]} 8... e6 {[%clk 0:02:58.1]} 9. Re1 {[%clk 0:02:42.4]} 9... Ne7 {[%clk
0:02:56.5]} 10. d5 {[%clk 0:02:23.4]} 10... e5 {[%clk 0:02:48.3]} 11. b4 {[%clk
0:02:11.8]} 11... Qc7 {[%clk 0:02:24.8]} 12. Nbd2 {[%clk 0:02:02.2]} 12... Rc8
{[%clk 0:02:01.2]} 13. a4 {[%clk 0:02:00.1]} 13... cxb4 {[%clk 0:01:01.5]} 14.
cxb4 {[%clk 0:02:01]} 14... Qc2 {[%clk 0:00:59.2]} 15. Ba3 {[%clk 0:01:44.9]}
15... Qxd1 {[%clk 0:00:58.6]} 16. Rexd1 {[%clk 0:01:40.8]} 16... Kd7 {[%clk
0:00:59.5]} 17. Rdc1 {[%clk 0:01:34.8]} 17... Bxf3 {[%clk 0:00:50.3]} 18. Nxf3
{[%clk 0:01:26.9]} 18... Rxc1+ {[%clk 0:00:44]} 19. Rxc1 {[%clk 0:01:27.5]}
19... g6 {[%clk 0:00:39.9]} 20. Kf1 {[%clk 0:01:04]} 20... Bh6 {[%clk
0:00:39.5]} 21. Rc2 {[%clk 0:01:03.5]} 21... f5 {[%clk 0:00:39.9]} 22. exf5
{[%clk 0:00:51.6]} 22... gxf5 {[%clk 0:00:40.8]} 23. g4 {[%clk 0:00:35.9]} 23...
fxg4 {[%clk 0:00:35.2]} 24. hxg4 {[%clk 0:00:36.8]} 24... Rg8 {[%clk 0:00:31.2]}
25. Rc4 {[%clk 0:00:22.1]} 25... b5 {[%clk 0:00:29.2]} 26. axb5 {[%clk
0:00:22.7]} 26... axb5 {[%clk 0:00:30.1]} 27. Re4 {[%clk 0:00:22.6]} 27... Nxd5
{[%clk 0:00:30.7]} 28. g5 {[%clk 0:00:20.3]} 28... Bxg5 {[%clk 0:00:30.1]} 29.
Rg4 {[%clk 0:00:19.9]} 29... h6 {[%clk 0:00:30.3]} 0-1